bitfinex/quotes_BTCUSD_20250601
["timestamp","ask_amount","ask_price","bid_price","bid_amount"]
[1748738006432,1.15100329,104390.0,104380.0,0.00048803]
[1748738007871,1.13600329,104390.0,104380.0,0.00048803]
[1748738008085,1.12820301,104390.0,104380.0,0.00048803]
[1748738008265,1.43044301,104390.0,104380.0,0.00048803]
[1748738008470,1.43048301,104390.0,104380.0,0.00048803]
[1748738009257,1.43044301,104390.0,104380.0,0.00048803]
[1748738009832,1.43036301,104390.0,104380.0,0.00048803]
[1748738010040,0.75210012,104390.0,104380.0,0.22083563]
[1748738010264,0.82749784,104390.0,104380.0,0.22083563]
[1748738010476,0.82249635,104390.0,104380.0,0.22975823]
[1748738010679,0.83207581,104390.0,104380.0,0.22975842]
[1748738011106,0.81291699,104390.0,104380.0,0.22975687]
[1748738011308,0.83207581,104390.0,104380.0,0.23933669]
[1748738011490,0.83207581,104390.0,104380.0,0.23041564]
[1748738011710,0.83207581,104390.0,104380.0,0.23933667]
[1748738011910,1.01408632,104390.0,104380.0,0.22017693]
[1748738012297,1.01408632,104390.0,104380.0,0.22017692]
[1748738012496,1.00450732,104390.0,104380.0,0.21125608]
[1748738012729,1.00450732,104390.0,104380.0,0.22083618]
[1748738013334,1.10253927,104390.0,104380.0,0.21059561]
[1748738013586,1.12360076,104390.0,104380.0,0.00940629]
[1748738013749,1.55945506,104390.0,104380.0,0.00048803]
[1748738015014,1.54945506,104390.0,104380.0,0.00048803]
[1748738015427,1.45694384,104390.0,104380.0,0.00048803]
[1748738018552,1.42574384,104390.0,104380.0,0.00048803]
[1748738022270,1.32896954,104390.0,104380.0,0.00048803]
[1748738022469,1.32920954,104390.0,104380.0,0.20167589]
[1748738022684,0.38755863,104390.0,104380.0,0.20167589]
[1748738022922,0.80219699,104390.0,104380.0,0.22975931]
[1748738023565,0.80219699,104390.0,104380.0,0.22976387]
[1748738023779,0.37798,104390.0,104380.0,0.22976387]
[1748738023982,0.37798,104390.0,104380.0,0.59450742]
[1748738025027,0.37798,104390.0,104380.0,0.32561817]
[1748738025243,0.37798,104390.0,104380.0,0.59451221]
[1748738025664,0.37798,104390.0,104380.0,0.5945122]
[1748738026093,0.37798,104390.0,104380.0,0.59451213]
[1748738026520,0.37498,104390.0,104380.0,0.59451213]
[1748738026699,0.37298,104390.0,104380.0,0.59451213]
[1748738026871,0.37498,104390.0,104380.0,0.59451213]
[1748738027787,0.37498,104390.0,104380.0,0.62699306]
[1748738027950,0.37498,104390.0,104380.0,0.61804993]
[1748738028171,0.37498,104390.0,104380.0,0.89588235]
[1748738030495,0.37498,104390.0,104380.0,0.8958883]
[1748738030845,0.37498,104390.0,104380.0,0.9119883]
[1748738031047,0.37498,104390.0,104380.0,0.91198724]
[1748738031249,0.37498,104390.0,104380.0,1.14228724]
[1748738031814,0.37498,104390.0,104380.0,1.14228642]
[1748738033188,0.37498,104390.0,104380.0,1.14228513]
[1748738033597,0.37498,104390.0,104380.0,1.13333918]
[1748738033848,0.37498,104390.0,104380.0,1.14228471]
[1748738034058,0.37498,104390.0,104380.0,1.13333918]
[1748738034275,0.37498,104390.0,104380.0,1.14228471]
[1748738035142,0.37498,104390.0,104380.0,1.14228438]
[1748738035767,0.37498,104390.0,104380.0,1.1422841]
[1748738035974,0.37498,104390.0,104380.0,0.8409241]
[1748738036189,0.39413772,104390.0,104380.0,0.54043485]
[1748738036402,0.39413763,104390.0,104380.0,0.54043485]
[1748738036669,0.38455872,104390.0,104380.0,0.54043485]
[1748738036889,0.39413763,104390.0,104380.0,0.54043571]
[1748738037071,0.39413753,104390.0,104380.0,0.54043571]
[1748738037282,0.66537176,104390.0,104380.0,0.31605598]
[1748738037457,0.4132958,104390.0,104380.0,0.32563717]
[1748738037657,0.4132958,104390.0,104380.0,0.31605744]
[1748738038025,0.42287516,104390.0,104380.0,0.33521699]
[1748738038223,0.42287516,104390.0,104380.0,0.32626975]
[1748738038414,0.42287516,104390.0,104380.0,0.23936278]
[1748738038415,0.49376071,104390.0,104380.0,0.23936278]
[1748738038618,0.4228759,104390.0,104380.0,0.23936278]
[1748738038845,0.61446513,104390.0,104380.0,0.22978305]
[1748738039325,0.61446513,104390.0,104380.0,0.22978382]
[1748738039996,0.60488567,104390.0,104380.0,0.220204]
[1748738040226,0.4228759,104390.0,104380.0,0.23936365]
[1748738040438,0.40371708,104390.0,104380.0,0.23936454]
[1748738040648,0.40371708,104390.0,104380.0,0.23936411]
[1748738041082,0.68343413,104390.0,104380.0,0.22978497]
[1748738041292,0.67385532,104390.0,104380.0,0.22020521]
[1748738041523,0.67385532,104390.0,104380.0,0.22978522]
[1748738042570,0.67385532,104390.0,104380.0,0.22978536]
[1748738042967,0.67385532,104390.0,104380.0,0.22020535]
[1748738043188,0.67385532,104390.0,104380.0,0.220836]
[1748738043346,0.60488632,104390.0,104380.0,0.22978581]
[1748738043753,0.60488632,104390.0,104380.0,0.23936563]
[1748738044789,0.39413772,104390.0,104380.0,0.24894536]
[1748738044994,0.4037169,104390.0,104380.0,0.24894536]
[1748738045398,0.41329617,104390.0,104380.0,0.24894536]
[1748738045851,0.41329617,104390.0,104380.0,0.24894703]
[1748738046043,0.41329617,104390.0,104380.0,0.23999555]
[1748738046222,0.41329617,104390.0,104380.0,0.24894703]
[1748738046430,0.41329617,104390.0,104380.0,0.2489475]
[1748738046839,0.61446486,104390.0,104380.0,0.23936864]
[1748738047381,0.61446486,104390.0,104380.0,0.24894885]
[1748738047834,0.66902079,104390.0,104380.0,0.24894985]
[1748738048079,0.61446486,104390.0,104380.0,0.24894984]
[1748738048288,0.61446486,104390.0,104380.0,0.23999555]
[1748738048511,0.61446486,104390.0,104380.0,0.24894986]
[1748738049111,0.61446486,104390.0,104380.0,0.2489514]
[1748738049609,0.43937553,104390.0,104380.0,0.24895315]
[1748738050070,0.42979617,104390.0,104380.0,0.24895315]
[1748738050980,0.42979617,104390.0,104380.0,0.24895519]
[1748738051198,0.43937553,104390.0,104380.0,0.24895519]
[1748738051410,0.45457553,104390.0,104380.0,0.24895519]
[1748738051590,0.4354169,104390.0,104380.0,0.24895761]
[1748738052159,0.44499617,104390.0,104380.0,0.24895759]
[1748738052579,0.44499617,104390.0,104380.0,0.23999555]
[1748738052723,0.44499617,104390.0,104380.0,0.24896016]
[1748738052724,0.45457553,104390.0,104380.0,0.24896016]
[1748738053399,0.54708675,104390.0,104380.0,0.24896016]
[1748738053612,0.54708675,104390.0,104380.0,0.23938105]
[1748738053613,0.73867672,104390.0,104380.0,0.23938105]
[1748738054680,0.71951854,104390.0,104380.0,0.20106084]
[1748738054891,0.70993927,104390.0,104380.0,0.01903363]
[1748738055322,0.69473927,104390.0,104380.0,0.01903363]
[1748738055767,0.69278012,104390.0,104380.0,0.00945289]
[1748738056198,0.69278012,104390.0,104380.0,0.0094529]
[1748738056411,0.69278012,104390.0,104380.0,0.00945229]
[1748738056829,0.78718012,104390.0,104380.0,0.00945229]
[1748738057281,0.6946689,104390.0,104380.0,0.22022016]
[1748738057510,0.37498,104390.0,104380.0,0.23937981]
[1748738057728,0.38455863,104390.0,104380.0,0.33523411]
[1748738057949,0.39413744,104390.0,104380.0,0.33523411]
[1748738058169,0.40371644,104390.0,104380.0,0.32626985]
[1748738058379,0.40371644,104390.0,104380.0,0.33523302]
[1748738058595,0.41329562,104390.0,104380.0,0.33523343]
[1748738058808,0.40371644,104390.0,104380.0,0.35316063]
[1748738059897,0.41329562,104390.0,104380.0,0.35316063]
[1748738060236,0.41329562,104390.0,104380.0,0.35316168]
[1748738060510,0.39413744,104390.0,104380.0,0.35316222]
[1748738060713,0.40371644,104390.0,104380.0,0.35316222]
[1748738060919,0.40371644,104390.0,104380.0,0.35316358]
[1748738061329,0.41329553,104390.0,104380.0,0.3531654]
[1748738061560,0.41329553,104390.0,104380.0,0.32626985]
[1748738061760,0.41329553,104390.0,104380.0,0.3531662]
[1748738061951,0.41329553,104390.0,104380.0,0.35316619]
[1748738062161,0.41329553,104390.0,104380.0,0.35316618]
[1748738062500,0.41329553,104390.0,104380.0,0.35316812]
[1748738062722,0.42879553,104390.0,104380.0,0.35316812]
[1748738063242,0.42879553,104390.0,104380.0,0.35316914]
[1748738063457,0.42879553,104390.0,104380.0,0.35317234]
[1748738063996,0.42879553,104390.0,104380.0,0.32626985]
[1748738064135,0.42879553,104390.0,104380.0,0.35317241]
[1748738064498,0.42879553,104390.0,104380.0,0.33523737]
[1748738064707,0.42879553,104390.0,104380.0,0.35317496]
[1748738064885,0.41921644,104390.0,104380.0,0.35317496]
[1748738065433,0.41921644,104390.0,104380.0,0.35317638]
[1748738065640,0.40963744,104390.0,104380.0,0.35317943]
[1748738065841,0.39413744,104390.0,104380.0,0.35317943]
[1748738066048,0.39413744,104390.0,104380.0,0.35317942]
[1748738066277,0.39413735,104390.0,104380.0,0.33524026]
[1748738066477,0.40371616,104390.0,104380.0,0.35318415]
[1748738066678,0.40371626,104390.0,104380.0,0.35318415]
[1748738067724,0.40371626,104390.0,104380.0,0.35318408]
[1748738067926,0.37498,104390.0,104380.0,0.35318408]
[1748738068141,0.38455863,104390.0,104380.0,0.35318408]
[1748738068541,0.38455863,104390.0,104380.0,0.35318382]
[1748738068955,0.39413735,104390.0,104380.0,0.35318382]
[1748738069178,0.39413735,104390.0,104380.0,0.32626985]
[1748738069390,0.37498,104390.0,104380.0,0.35318337]
[1748738069599,0.38455863,104390.0,104380.0,0.35318337]
[1748738069779,0.38455863,104390.0,104380.0,0.35318326]
[1748738069982,0.37498,104390.0,104380.0,0.35318326]
[1748738070195,0.37498,104390.0,104380.0,0.35318303]
[1748738070400,0.37498,104390.0,104380.0,0.35318261]
[1748738070599,0.37498,104390.0,104380.0,0.35318253]
[1748738071217,0.37498,104390.0,104380.0,0.3531824]
[1748738071658,0.37498,104390.0,104380.0,0.35318138]
[1748738071836,0.37498,104390.0,104380.0,0.35318139]
[1748738072184,0.37498,104390.0,104380.0,0.35318137]
[1748738072387,0.37498,104390.0,104380.0,0.35318074]
[1748738072814,0.37498,104390.0,104380.0,0.35318045]
[1748738073395,0.37498,104390.0,104380.0,0.6220697]
[1748738073812,0.37498,104390.0,104380.0,0.61309893]
[1748738074013,0.37498,104390.0,104380.0,0.60412901]
[1748738074214,0.37498,104390.0,104380.0,0.62206882]
[1748738074660,0.37498,104390.0,104380.0,0.62206834]
[1748738075634,0.37498,104390.0,104380.0,0.622064]
[1748738076267,0.37498,104390.0,104380.0,0.62206006]
[1748738076750,0.37498,104390.0,104380.0,0.62205702]
[1748738077341,0.37498,104390.0,104380.0,0.62205636]
[1748738078376,0.37498,104390.0,104380.0,0.62204744]
[1748738078583,0.37498,104390.0,104380.0,0.83714744]
[1748738078793,0.37498,104390.0,104380.0,0.8371474]
[1748738079418,0.37498,104390.0,104380.0,0.83714605]
[1748738079987,0.37498,104390.0,104380.0,0.83714339]
[1748738080192,0.37498,104390.0,104380.0,1.13734339]
[1748738080466,0.37498,104390.0,104380.0,0.35315414]
[1748738080699,0.4153514,104390.0,104380.0,0.65335414]
[1748738080918,0.38455863,104390.0,104380.0,0.65335414]
[1748738081088,0.38455863,104390.0,104380.0,0.65335397]
[1748738081289,0.39413744,104390.0,104380.0,0.65335399]
[1748738081544,0.38455863,104390.0,104380.0,0.64439277]
[1748738081717,0.38455863,104390.0,104380.0,0.25729921]
[1748738081918,0.4546239,104390.0,104380.0,0.25729921]
[1748738082180,0.4642029,104390.0,104380.0,0.25729929]
[1748738082373,0.4642029,104390.0,104380.0,0.25729892]
[1748738082709,0.4642029,104390.0,104380.0,0.23041555]
[1748738082882,0.40371626,104390.0,104380.0,0.2572997]
[1748738083922,0.40371626,104390.0,104380.0,0.25729981]
[1748738084327,0.39413735,104390.0,104380.0,0.2573002]
[1748738084526,0.40371626,104390.0,104380.0,0.2573002]
[1748738084735,0.40371626,104390.0,104380.0,0.25730022]
[1748738085380,0.40371626,104390.0,104380.0,0.25730231]
[1748738085588,0.40371626,104390.0,104380.0,0.25730289]
[1748738086052,0.37498,104390.0,104380.0,0.52619214]
[1748738086472,0.37498,104390.0,104380.0,0.52619333]
[1748738086648,0.37498,104390.0,104380.0,0.52619489]
[1748738086882,0.37498,104390.0,104380.0,0.62204921]
[1748738087079,0.37498,104390.0,104380.0,0.62204918]
[1748738088263,0.37498,104390.0,104380.0,0.62205423]
[1748738088466,0.37498,104390.0,104380.0,0.5951591]
[1748738088644,0.37498,104390.0,104380.0,0.62205542]
[1748738088851,0.37498,104390.0,104380.0,0.6220556]
[1748738089044,0.37498,104390.0,104380.0,0.62205597]
[1748738089448,0.37498,104390.0,104380.0,0.62205607]
[1748738089669,0.37498,104390.0,104380.0,0.61309035]
[1748738089871,0.37498,104390.0,104380.0,0.62205592]
[1748738090623,0.37498,104390.0,104380.0,0.83715592]
[1748738090975,0.37498,104390.0,104380.0,0.83715372]
[1748738091364,0.37498,104390.0,104380.0,0.83715244]
[1748738091566,0.37498,104390.0,104380.0,0.83714988]
[1748738092407,0.37498,104390.0,104380.0,0.83714887]
[1748738092628,0.37498,104390.0,104380.0,0.81922168]
[1748738092785,0.37498,104390.0,104380.0,1.13766684]
[1748738093418,0.37498,104390.0,104380.0,1.1376646]
[1748738093861,0.37498,104390.0,104380.0,1.13766459]
[1748738094425,0.37498,104390.0,104380.0,1.13766403]
[1748738094628,0.37498,104390.0,104380.0,1.13766291]
[1748738094824,0.37498,104390.0,104380.0,1.13766289]
[1748738095451,0.37498,104390.0,104380.0,1.13766177]
[1748738096027,0.37498,104390.0,104380.0,1.12870092]
[1748738096252,0.37498,104390.0,104380.0,1.13766183]
[1748738096428,0.37498,104390.0,104380.0,1.23178183]
[1748738097113,0.37398,104390.0,104380.0,1.23178183]
[1748738097325,0.37398,104390.0,104380.0,1.23178129]
[1748738097527,0.37298,104390.0,104380.0,1.23178129]
[1748738097947,0.37298,104390.0,104380.0,1.23278129]
[1748738098599,0.37298,104390.0,104380.0,1.23278102]
[1748738099617,0.37298,104390.0,104380.0,1.23278138]
[1748738100428,0.37298,104390.0,104380.0,1.23278184]
[1748738101006,0.37298,104390.0,104380.0,1.23278225]
[1748738101334,0.37298,104390.0,104380.0,0.96389324]
[1748738101541,0.37298,104390.0,104380.0,1.23278249]
[1748738101753,0.37298,104390.0,104380.0,1.23278293]
[1748738101924,0.37298,104390.0,104380.0,1.23278292]
[1748738102456,0.37298,104390.0,104380.0,1.23278311]
[1748738102661,0.37298,104390.0,104380.0,1.21486057]
[1748738102874,0.37298,104390.0,104380.0,1.57278345]
[1748738103072,0.37298,104390.0,104380.0,1.5727826]
[1748738103278,0.37298,104390.0,104380.0,1.572783]
[1748738103640,0.37298,104390.0,104380.0,1.81478835]
[1748738103848,0.37298,104390.0,104380.0,1.84725126]
[1748738103849,0.36364402,104390.0,104380.0,1.84725126]
[1748738104456,0.36364402,104390.0,104380.0,1.85725126]
[1748738104735,0.36364402,104390.0,104380.0,1.8572406]
[1748738104884,0.36364402,104390.0,104380.0,1.91712608]
[1748738105288,0.36364402,104390.0,104380.0,1.91612608]
[1748738105493,0.36364402,104390.0,104380.0,1.91812608]
[1748738105898,0.36364402,104390.0,104380.0,1.91811557]
[1748738106345,0.36364402,104390.0,104380.0,1.91811478]
[1748738106668,0.36364402,104390.0,104380.0,1.91811477]
[1748738106809,0.36364402,104390.0,104380.0,1.90221468]
[1748738107018,0.36364402,104390.0,104380.0,1.92011477]
[1748738107620,0.36364402,104390.0,104380.0,1.9378022]
[1748738108132,0.36364402,104390.0,104380.0,1.93779514]
[1748738108332,0.36364402,104390.0,104380.0,1.9377941]
[1748738109392,0.36364402,104390.0,104380.0,1.98778808]
[1748738109603,0.36364402,104390.0,104380.0,1.98778366]
[1748738110015,0.36364402,104390.0,104380.0,1.93778366]
[1748738110217,0.36364402,104390.0,104380.0,1.98778366]
[1748738110765,0.36364402,104390.0,104380.0,1.98777903]
[1748738111203,0.31578088,104390.0,104380.0,2.48187902]
[1748738111432,0.29878088,104390.0,104380.0,2.48187902]
[1748738111633,0.29878088,104390.0,104380.0,2.48187324]
[1748738111850,0.29878088,104390.0,104380.0,2.46400211]
[1748738112048,0.29878088,104390.0,104380.0,2.47987324]
[1748738112217,0.25091774,104390.0,104380.0,2.48287324]
[1748738112529,0.15519146,104390.0,104380.0,2.48287324]
[1748738112854,0.12676146,104390.0,104380.0,2.48287324]
[1748738113054,0.12676146,104390.0,104380.0,2.48086988]
[1748738113391,0.12676146,104390.0,104380.0,2.48286988]
[1748738113392,0.07889832,104390.0,104380.0,2.48286988]
[1748738113807,0.07889832,104390.0,104380.0,2.48286764]
[1748738114022,0.07889832,104390.0,104380.0,2.51161064]
[1748738114465,0.07889832,104390.0,104380.0,2.49374511]
[1748738114676,0.07889832,104390.0,104380.0,2.51160936]
[1748738115495,0.07889832,104390.0,104380.0,2.42848874]
[1748738115710,0.07889832,104390.0,104380.0,2.47848874]
[1748738115912,0.07889832,104390.0,104380.0,2.45124388]
[1748738116133,0.07889832,104390.0,104380.0,2.45124462]
[1748738116338,0.07889832,104390.0,104380.0,2.45124634]
[1748738116581,0.07889832,104390.0,104380.0,2.44124634]
[1748738116803,0.07889832,104390.0,104380.0,2.45124634]
[1748738116978,0.07635409,104420.0,104410.0,0.02873176]
[1748738117177,0.07635409,104420.0,104410.0,1.20300326]
[1748738117487,0.07635409,104420.0,104410.0,1.39455579]
[1748738117879,0.07635409,104420.0,104410.0,1.39455742]
[1748738118465,0.07635409,104420.0,104410.0,1.37668952]
[1748738118666,0.07635409,104420.0,104410.0,1.39455721]
[1748738118851,0.07635409,104420.0,104410.0,1.41400054]
[1748738119235,0.07835409,104420.0,104410.0,1.41400054]
[1748738119457,0.07835409,104420.0,104410.0,1.01984054]
[1748738119638,0.002,104420.0,104410.0,1.41400054]
[1748738119839,0.002,104420.0,104410.0,1.41400573]
[1748738121256,0.002,104420.0,104410.0,1.41400735]
[1748738121890,0.002,104420.0,104410.0,1.41400854]
[1748738122658,0.002,104420.0,104410.0,1.41400919]
[1748738122906,0.002,104420.0,104410.0,1.39613285]
[1748738123119,0.002,104420.0,104410.0,1.4140091]
[1748738123779,0.002,104420.0,104410.0,1.41401027]
[1748738124478,0.002,104420.0,104410.0,1.41401264]
[1748738124996,0.002,104420.0,104410.0,1.41401262]
[1748738125443,0.002,104420.0,104410.0,1.41401474]
[1748738125656,0.0186,104420.0,104410.0,1.41401474]
[1748738126065,0.0345,104420.0,104410.0,1.41401474]
[1748738126239,0.0325,104420.0,104410.0,1.41401454]
[1748738126449,0.0325,104420.0,104410.0,1.39613285]
[1748738126820,0.0325,104420.0,104410.0,1.41401738]
[1748738127021,0.0325,104420.0,104410.0,1.4140176]
[1748738127763,0.0325,104420.0,104410.0,1.41825544]
[1748738127965,0.0325,104420.0,104410.0,1.40037069]
[1748738128378,0.0325,104420.0,104410.0,1.41826355]
[1748738129887,0.0325,104420.0,104410.0,1.40037069]
[1748738130267,0.0325,104420.0,104410.0,1.4182702]
[1748738131060,0.0325,104420.0,104410.0,1.41827851]
[1748738131262,0.0325,104420.0,104410.0,1.4182785]
[1748738133240,0.0325,104420.0,104410.0,1.40037069]
[1748738133440,0.0325,104420.0,104410.0,1.41829133]
[1748738133856,0.0325,104420.0,104410.0,1.40037069]
[1748738135228,0.02164393,104450.0,104440.0,0.22022102]
[1748738135437,0.0024974,104450.0,104440.0,0.31607532]
[1748738135847,0.01207053,104450.0,104440.0,0.31607532]
[1748738136048,0.0024974,104450.0,104440.0,0.31607532]
[1748738136461,0.00754616,104450.0,104440.0,0.31607532]
[1748738136661,0.00754616,104450.0,104440.0,0.33400789]
[1748738136873,0.00754616,104450.0,104440.0,0.60289714]
[1748738137073,0.00574945,104450.0,104440.0,0.60289714]
[1748738137273,0.00574945,104450.0,104440.0,0.6028946]
[1748738137450,0.00574945,104450.0,104440.0,0.6181946]
[1748738137654,0.00574945,104450.0,104440.0,0.61817807]
[1748738138060,0.00574945,104450.0,104440.0,0.63417808]
[1748738138480,0.00074945,104450.0,104440.0,0.63417808]
[1748738138702,0.00374945,104450.0,104440.0,0.63417808]
[1748738139043,0.00374945,104450.0,104440.0,0.61626457]
[1748738139249,0.00374945,104450.0,104440.0,0.6341691]
[1748738139431,0.00074945,104450.0,104440.0,0.63416828]
[1748738139632,0.00074945,104450.0,104440.0,0.60026457]
[1748738139878,0.00274945,104450.0,104440.0,0.6181683]
[1748738141051,0.00274945,104450.0,104440.0,0.61815407]
[1748738141418,0.00274945,104450.0,104440.0,0.58496457]
[1748738141835,0.00274945,104450.0,104440.0,0.60284859]
[1748738142728,0.00274945,104450.0,104440.0,0.66034561]
[1748738143099,0.00274945,104450.0,104440.0,0.64246625]
[1748738143306,0.00274945,104450.0,104440.0,0.66034549]
[1748738144525,0.00274945,104450.0,104440.0,0.66033724]
[1748738145272,0.00274945,104450.0,104440.0,0.66033723]
[1748738145877,0.00274945,104450.0,104440.0,0.66033622]
[1748738146279,0.00274945,104450.0,104440.0,0.66033619]
[1748738146483,0.00274945,104450.0,104440.0,0.64246625]
[1748738146686,0.00274945,104450.0,104440.0,0.66033619]
[1748738147554,0.00274945,104450.0,104440.0,0.66033422]
[1748738147734,0.00274945,104450.0,104440.0,1.00033422]
[1748738147976,0.00274945,104450.0,104440.0,1.0003335]
[1748738148389,0.00274945,104450.0,104440.0,1.00033352]
[1748738148811,0.00274945,104450.0,104440.0,1.00033128]
[1748738148966,0.00274945,104450.0,104440.0,1.00033132]
[1748738149500,0.00074945,104450.0,104440.0,1.00033132]
[1748738149676,0.00074945,104450.0,104440.0,1.00033009]
[1748738150124,0.00074945,104450.0,104440.0,1.02906309]
[1748738150336,0.00074945,104450.0,104440.0,1.42278315]
[1748738150522,0.00074945,104450.0,104440.0,1.42278346]
[1748738150945,0.00074945,104450.0,104440.0,1.12290346]
[1748738151127,0.00074945,104450.0,104440.0,1.42278346]
[1748738151651,0.00074945,104450.0,104440.0,1.40491925]
[1748738151851,0.00074945,104450.0,104440.0,1.42278529]
[1748738151998,0.00074945,104450.0,104440.0,1.42278528]
[1748738152701,0.00074945,104450.0,104440.0,1.42278529]
[1748738153180,0.00074945,104450.0,104440.0,1.42278525]
[1748738153475,0.00074945,104450.0,104440.0,1.40491925]
[1748738153599,0.00074945,104450.0,104440.0,1.42274536]
[1748738154435,0.00074945,104450.0,104440.0,1.42274995]
[1748738154837,0.00074945,104450.0,104440.0,1.42274997]
[1748738155275,0.00074945,104450.0,104440.0,1.42274992]
[1748738155523,0.00074945,104450.0,104440.0,1.42274993]
[1748738156097,0.00074945,104450.0,104440.0,0.85398068]
[1748738156304,0.00074945,104450.0,104440.0,1.15382443]
[1748738156537,0.00074945,104450.0,104440.0,1.42271368]
[1748738156734,0.00074945,104450.0,104440.0,1.40483925]
[1748738156931,0.00074945,104450.0,104440.0,1.4227144]
[1748738157176,0.00074945,104450.0,104440.0,1.40483925]
[1748738157352,0.00074945,104450.0,104440.0,1.42271774]
[1748738157952,0.00074945,104450.0,104440.0,1.40483925]
[1748738158194,0.00074945,104450.0,104440.0,1.42271833]
[1748738158595,0.00074945,104450.0,104440.0,1.42272239]
[1748738158857,0.00074945,104450.0,104440.0,1.40483925]
[1748738159044,0.00074945,104450.0,104440.0,1.42272239]
[1748738159882,0.00074945,104450.0,104440.0,1.42272868]
[1748738160782,0.00074945,104450.0,104440.0,1.42272841]
[1748738161418,0.00074945,104450.0,104440.0,1.42272847]
[1748738162272,0.00074945,104450.0,104440.0,1.42273602]
[1748738162786,0.00074945,104450.0,104440.0,1.42269602]
[1748738163385,0.00074945,104450.0,104440.0,1.40479925]
[1748738163804,0.00074945,104450.0,104440.0,1.42272682]
[1748738164496,0.00074945,104450.0,104440.0,1.40479925]
[1748738164729,0.00074945,104450.0,104440.0,1.4227267]
[1748738164977,0.00074945,104450.0,104440.0,0.85403738]
[1748738165231,0.00074945,104450.0,104440.0,0.42023894]
[1748738165490,0.09804678,104450.0,104440.0,0.30528075]
[1748738165707,0.08244678,104450.0,104440.0,0.35253951]
[1748738165942,0.06939386,104450.0,104440.0,0.35253951]
[1748738166162,0.0410669,104450.0,104440.0,0.33799096]
[1748738166363,0.0410669,104450.0,104440.0,0.35713291]
[1748738166838,0.0410669,104450.0,104440.0,0.35713295]
[1748738167040,0.0410669,104450.0,104440.0,0.35712552]
[1748738167258,0.04106699,104450.0,104440.0,0.36669975]
[1748738167461,0.01136984,104450.0,104440.0,0.36669975]
[1748738167669,0.03251656,104450.0,104440.0,0.36669975]
[1748738167800,0.03251656,104450.0,104440.0,0.34877807]
[1748738168009,0.02294306,104450.0,104440.0,0.36668612]
[1748738168214,0.41549646,104450.0,104440.0,0.36668611]
[1748738168414,0.41369975,104450.0,104440.0,0.36668611]
[1748738168637,0.41369975,104450.0,104440.0,0.36668504]
[1748738169036,0.38498,104450.0,104440.0,0.36668504]
[1748738169247,0.39455331,104450.0,104440.0,0.36667786]
[1748738169446,0.39455331,104450.0,104440.0,0.33982405]
[1748738169610,0.39455331,104450.0,104440.0,0.36667807]
[1748738169818,0.4041269,104450.0,104440.0,0.3666713]
[1748738170022,0.40412681,104450.0,104440.0,0.3666713]
[1748738170619,0.40412681,104450.0,104440.0,0.34752222]
[1748738170824,0.39455331,104450.0,104440.0,0.34877262]
[1748738171160,0.39455331,104450.0,104440.0,0.3577183]
[1748738171355,0.38498,104450.0,104440.0,0.36666526]
[1748738171536,0.39455322,104450.0,104440.0,0.36206524]
[1748738171737,0.38498,104450.0,104440.0,0.36206524]
[1748738171970,0.38498,104450.0,104440.0,0.33522405]
[1748738172266,0.38498,104450.0,104440.0,0.62200405]
[1748738173425,0.38478851,104450.0,104440.0,0.62200159]
[1748738174062,0.38478851,104450.0,104440.0,0.35311234]
[1748738174482,0.38478851,104450.0,104440.0,0.63498405]
[1748738175093,0.38478851,104450.0,104440.0,0.65287136]
[1748738175857,0.38478851,104450.0,104440.0,0.65287332]
[1748738176394,0.3846284,104450.0,104440.0,0.65287332]
[1748738177172,0.3846284,104450.0,104440.0,0.65287351]
[1748738177366,0.3846284,104450.0,104440.0,0.63498405]
[1748738177573,0.3846284,104450.0,104440.0,0.65287351]
[1748738177750,0.3846284,104450.0,104440.0,0.65287374]
[1748738178068,0.3846284,104450.0,104440.0,0.65287372]
[1748738178474,0.3846284,104450.0,104440.0,0.35311372]
[1748738178670,0.3846284,104450.0,104440.0,0.65287372]
[1748738178876,0.3846284,104450.0,104440.0,0.65287461]
[1748738179231,0.3846284,104450.0,104440.0,0.35311556]
[1748738179418,0.3846284,104450.0,104440.0,0.65287556]
[1748738179816,0.3846284,104450.0,104440.0,0.35311556]
[1748738179989,0.3846284,104450.0,104440.0,0.65287655]
[1748738180579,0.3846284,104450.0,104440.0,0.35311651]
[1748738180780,0.3846284,104450.0,104440.0,0.65287651]
[1748738181286,0.3846284,104450.0,104440.0,0.35311651]
[1748738181444,0.3846284,104450.0,104440.0,0.65283651]
[1748738182026,0.3846284,104450.0,104440.0,0.65283844]
[1748738182222,0.3846284,104450.0,104440.0,0.65283843]
[1748738182900,0.3846284,104450.0,104440.0,0.65283932]
[1748738183780,0.3846284,104450.0,104440.0,0.33522405]
[1748738183933,0.3846284,104450.0,104440.0,0.63494405]
[1748738184106,0.3846284,104450.0,104440.0,0.65283957]
[1748738185187,0.3846284,104450.0,104440.0,0.63494405]
[1748738185341,0.3846284,104450.0,104440.0,0.65284085]
[1748738185578,0.3846284,104450.0,104440.0,0.63494405]
[1748738186595,0.3846284,104450.0,104440.0,0.65284223]
[1748738186977,0.3846284,104450.0,104440.0,0.35312223]
[1748738187179,0.3846284,104450.0,104440.0,0.6528032]
[1748738187604,0.3846284,104450.0,104440.0,0.63490405]
[1748738187809,0.3846284,104450.0,104440.0,0.65280415]
[1748738188251,0.3846284,104450.0,104440.0,0.65280416]
[1748738189195,0.3846284,104450.0,104440.0,0.65280646]
[1748738189966,0.3846284,104450.0,104440.0,0.65280724]
[1748738190186,0.3846284,104450.0,104440.0,0.65280728]
[1748738190697,0.3846284,104450.0,104440.0,0.63490405]
[1748738191862,0.3846284,104450.0,104440.0,0.65280969]
[1748738192078,0.3846284,104450.0,104440.0,0.63490405]
[1748738192281,0.3846284,104450.0,104440.0,0.65280971]
[1748738192487,0.3846284,104450.0,104440.0,0.63490405]
[1748738192690,0.3846284,104450.0,104440.0,0.65281052]
[1748738192919,0.3846284,104450.0,104440.0,0.63490405]
[1748738193132,0.3846284,104450.0,104440.0,0.65281383]
[1748738194072,0.3846284,104450.0,104440.0,0.97920952]
[1748738194246,0.3846284,104450.0,104440.0,0.97920955]
[1748738194733,0.3846284,104450.0,104440.0,0.97921545]
[1748738196254,0.3846284,104450.0,104440.0,0.97921563]
[1748738196444,0.3846284,104450.0,104440.0,0.96129498]
[1748738196716,0.3846284,104450.0,104440.0,0.97921559]
[1748738197383,0.3846284,104450.0,104440.0,1.05032634]
[1748738197614,0.3846284,104450.0,104440.0,1.31921572]
[1748738198094,0.3846284,104450.0,104440.0,1.31921558]
[1748738198312,0.3846284,104450.0,104440.0,1.01953558]
[1748738198566,0.3846284,104450.0,104440.0,1.31913558]
[1748738198749,0.3846284,104450.0,104440.0,1.30121498]
[1748738199163,0.3846284,104450.0,104440.0,1.31913752]
[1748738199359,0.3846284,104450.0,104440.0,1.30121498]
[1748738199706,0.3846284,104450.0,104440.0,1.30545885]
[1748738199931,0.3846284,104450.0,104440.0,1.30585885]
[1748738201115,0.3846284,104450.0,104440.0,1.32378812]
[1748738201324,0.3846284,104450.0,104440.0,1.30585885]